[Event "MGL-HUN Friendship Cup 2019"]
[Site "Debrecen"]
[Date "2019.09.12"]
[Round "6.2"]
[White "Varga, Zoltan"]
[Black "Kovchan, Alexander"]
[Result "1/2-1/2"]
[ECO "B53"]
[WhiteElo "2437"]
[BlackElo "2567"]
[Annotator "ChessBase"]
[PlyCount "24"]
[EventDate "2019.09.09"]
[EventType "tourn"]
[EventCountry "HUN"]
[SourceTitle "playchess.com"]
[Source "ChessBase"]
[SourceQuality "1"]
[TimeControl "40/5400+30:900+30"]

1. e4 {[%emt 0:00:04]} c5 {[%emt 0:00:09]} 2. Nf3 {[%emt 0:00:05]} d6 {[%emt 0:00:08]} 3. d4 {[%emt 0:00:07]} cxd4 {[%emt 0:00:09]} 4. Qxd4 {[%emt 0:00:15]} Nc6 {[%emt 0:02:02]} 5. Qe3 {[%emt 0:01:41]} Nf6 {[%emt 0:00:30]} 6. h3 {[%emt 0:00:29]} g6 {[%emt 0:00:23]} 7. Be2 {[%emt 0:00:22]} Bg7 {[%emt 0:00:26]} 8. O-O {[%emt 0:00:19]} O-O {[%emt 0:00:27]} 9. Nc3 {[%emt 0:03:00]} Nd7 {[%emt 0:04:07]} 10. Rd1 {[%emt 0:08:14]} Qb6 {[%emt 0:02:44]} 11. Qxb6 Nxb6 {[%emt 0:00:33]} 12. Nd5 {[%emt 0:05:28]} Be6 {[%emt 0:07:12]} 1/2-1/2

[Event "MGL-HUN Friendship Cup 2019"]
[Site "Debrecen"]
[Date "2019.09.13"]
[Round "7.1"]
[White "Nomin-Erdene, Davaademberel"]
[Black "Lajthajm, Borko"]
[Result "1-0"]
[ECO "C68"]
[WhiteElo "2377"]
[BlackElo "2414"]
[Annotator "NA"]
[PlyCount "103"]
[EventDate "2019.09.09"]
[EventType "tourn"]
[EventCountry "HUN"]
[SourceTitle "playchess.com"]
[Source "ChessBase"]
[SourceQuality "1"]
[TimeControl "40/5400+30:900+30"]

1. e4 {[%emt 0:00:04]} e5 {[%emt 0:00:13]} 2. Nf3 {[%emt 0:00:18]} Nc6 {[%emt 0:00:21]} 3. Bb5 {[%emt 0:00:18]} a6 {[%emt 0:00:28]} 4. Bxc6 {[%emt 0:00:50]} dxc6 {[%emt 0:00:28]} 5. O-O {[%emt 0:00:15]} Qf6 {[%emt 0:00:37]} 6. d4 {[%emt 0:04:22] C68: Ruy Lopez: Exchange Variation, sidelines} exd4 {[%emt 0:00:58]} 7. Bg5 {[%emt 0:01:49]} Qg6 {[%emt 0:03:57]} (7... Qd6 8. Nxd4 Be7 9. Bxe7 Nxe7 10. Nc3 Bd7 11. Nde2 O-O-O 12. Qc1 Ng6 13. Qe3 Kb8 {0-1 (39) Naiditsch,A (2695)-Svidler,P (2735) Karlsruhe/Baden Baden 2019}) 8. Qxd4 {[%emt 0:01:46]} Bg4 {[%emt 0:01:03]} 9. Nbd2 {[%emt 0:02:43]} Be7 {[%emt 0:04:39]} 10. Bxe7 $146 {[%emt 0:06:40]} ({Predecessor:} 10. Bf4 Bd6 11. Nh4 Qf6 12. e5 Bc5 13. Qxc5 Qxf4 {1-0 (48) Sanchez Carol,J (1877)-Ausan,L (1405) LSS email 2007}) 10... Nxe7 {[%emt 0:00:09]} 11. Ne5 {[%emt 0:00:40]} Qf6 {[%emt 0:01:29]} 12. Qc5 {[%emt 0:04:25]} h5 {[%emt 0:07:41]} 13. f4 {[%emt 0:04:28]} Qd6 {[%emt 0:06:02]} 14. Qf2 {[%emt 0:02:36]} Rd8 {[%emt 0:00:46]} 15. Nb3 {[%emt 0:02:23]} Be6 {[%emt 0:02:07]} 16. c4 {[%emt 0:02:38]} Bc8 {[%emt 0:10:46]} 17. Qf3 {[%emt 0:09:01]} Qh6 {[%emt 0:00:45]} 18. Rae1 {[%emt 0:02:19]} O-O {[%emt 0:01:19]} 19. Qc3 $11 {[%emt 0:03:01]} f6 {[%emt 0:11:25]} 20. Nd3 {[%emt 0:01:46]} b6 {[%emt 0:00:18]} 21. c5 {[%emt 0:09:10]} a5 {[%emt 0:02:13]} 22. f5 {[%emt 0:02:05]} Rfe8 {[%emt 0:11:56]} 23. Nf4 {[%emt 0:05:00]} h4 {[%emt 0:04:57]} 24. Nd4 {[%emt 0:02:05]} Bd7 {[%emt 0:03:17]} 25. Nde6 {[%emt 0:08:17]} Bxe6 {[%emt 0:00:46]} 26. Nxe6 {[%emt 0:00:17]} Rd7 {[%emt 0:01:12]} 27. Rd1 {[%emt 0:01:20]} Rxd1 {[%emt 0:04:05]} 28. Rxd1 {[%emt 0:00:05]} Qh5 {[%emt 0:02:27]} 29. Qe1 {[%emt 0:00:54]} Nxf5 {[%emt 0:06:58]} 30. exf5 {[%emt 0:10:05]} Qxf5 {[%emt 0:00:40]} 31. Rd8 {[%emt 0:00:10]} Rxd8 {[%emt 0:02:28]} 32. Nxd8 {[%emt 0:00:09]} Qxc5+ {[%emt 0:02:11]} 33. Kh1 {[%emt 0:01:41]} Qc2 {[%emt 0:02:42]} 34. h3 {[%emt 0:02:46]} Qxb2 {[%emt 0:00:44]} 35. Qe8+ {[%emt 0:01:26]} Kh7 {[%emt 0:00:17]} 36. Qe4+ {[%emt 0:01:05]} Kg8 {[%emt 0:00:12]} 37. Qc4+ {[%emt 0:00:27]} Kh7 {[%emt 0:00:55]} 38. Qxh4+ {[%emt 0:00:30]} Kg8 {[%emt 0:00:29]} 39. Qc4+ {[%emt 0:00:20]} Kh7 {[%emt 0:00:28]} 40. Nxc6 {[%emt 0:00:00]} b5 {[%emt 0:00:00]} 41. Qe4+ {[%emt 0:01:40]} Kh6 {[%emt 0:01:53]} 42. Ne7 {[%emt 0:00:33]} Qa1+ {[%emt 0:00:18]} 43. Kh2 {[%emt 0:00:11]} Qe5+ {[%emt 0:00:18]} 44. Qxe5 {[%emt 0:00:07]} fxe5 {[%emt 0:00:07]} 45. Nc6 {[%emt 0:00:18]} Kg5 {[%emt 0:00:55]} 46. Kg3 {[%emt 0:00:32]} Kf5 {[%emt 0:00:26]} 47. Kf3 {[%emt 0:00:15]} a4 {[%emt 0:00:31]} 48. g4+ {[%emt 0:00:29]} Kg5 {[%emt 0:00:47]} 49. Kg3 {[%emt 0:00:27]} g6 {[%emt 0:02:03]} 50. h4+ {[%emt 0:00:24]} Kf6 {[%emt 0:00:07]} 51. Kf3 {[%emt 0:00:07]} Ke6 {[%emt 0:00:24]} 52. Ke4 {[%emt 0:00:09] Kd5+} 1-0

[Event "MGL-HUN Friendship Cup 2019"]
[Site "Debrecen"]
[Date "2019.09.13"]
[Round "7.3"]
[White "Kovchan, Alexander"]
[Black "Laketic, Gojko"]
[Result "1-0"]
[ECO "B36"]
[WhiteElo "2567"]
[BlackElo "2367"]
[Annotator "ChessBase"]
[PlyCount "65"]
[EventDate "2019.09.09"]
[EventType "tourn"]
[EventCountry "HUN"]
[SourceTitle "playchess.com"]
[Source "ChessBase"]
[SourceQuality "1"]
[TimeControl "40/5400+30:900+30"]

1. e4 {[%emt 0:00:06]} c5 {[%emt 0:00:44]} 2. Nf3 {[%emt 0:00:12]} Nc6 {[%emt 0:01:06]} 3. d4 {[%emt 0:00:12]} cxd4 {[%emt 0:00:05]} 4. Nxd4 {[%emt 0:00:09]} g6 {[%emt 0:00:26]} 5. c4 {[%emt 0:00:49]} Nf6 {[%emt 0:00:32]} 6. Nc3 {[%emt 0:00:11]} d6 {[%emt 0:00:03]} 7. f3 {[%emt 0:00:57]} Bg7 {[%emt 0:01:19]} 8. Be3 {[%emt 0:00:12]} O-O {[%emt 0:01:59]} 9. Qd2 {[%emt 0:01:31]} Bd7 {[%emt 0:02:51]} 10. Be2 {[%emt 0:02:17]} Nxd4 {[%emt 0:02:14]} 11. Bxd4 {[%emt 0:00:04]} Bc6 {[%emt 0:00:08]} 12. b4 {[%emt 0:03:15]} a5 {[%emt 0:22:28]} 13. b5 {[%emt 0:00:33]} Be8 {[%emt 0:00:02]} 14. h4 {[%emt 0:09:08]} a4 {[%emt 0:10:29]} 15. g4 {[%emt 0:02:27]} Qa5 {[%emt 0:02:44]} 16. h5 {[%emt 0:02:02]} Bd7 {[%emt 0:18:12]} 17. Qe3 {[%emt 0:15:56]} Be6 {[%emt 0:04:00]} 18. Kf2 {[%emt 0:18:17]} Rac8 {[%emt 0:04:45]} 19. Nd5 {[%emt 0:03:22]} Bxd5 {[%emt 0:08:25]} 20. exd5 {[%emt 0:01:33]} Qc7 {[%emt 0:02:23]} 21. Bd3 {[%emt 0:14:56]} Qd7 {[%emt 0:01:10]} 22. h6 {[%emt 0:02:05]} Bh8 {[%emt 0:01:14]} 23. Bf5 {[%emt 0:00:12]} Qc7 {[%emt 0:12:12]} 24. Bxc8 {[%emt 0:00:18]} Qxc8 {[%emt 0:00:38]} 25. g5 {[%emt 0:03:21]} e5 {[%emt 0:01:37]} 26. dxe6 {[%emt 0:01:36]} Ng4+ {[%emt 0:00:16]} 27. fxg4 {[%emt 0:00:10]} fxe6+ {[%emt 0:00:03]} 28. Bf6 {[%emt 0:01:57]} Bxf6 {[%emt 0:00:08]} 29. gxf6 {[%emt 0:00:05]} Rxf6+ {[%emt 0:00:04]} 30. Kg3 {[%emt 0:00:18]} Qxc4 {[%emt 0:00:22]} 31. Rhc1 {[%emt 0:00:27]} Qxb5 {[%emt 0:00:49]} 32. g5 {[%emt 0:01:15]} Rf8 {[%emt 0:00:37]} 33. Qxe6+ {[%emt 0:00:18]} 1-0

[Event "MGL-HUN Friendship Cup 2019"]
[Site "Debrecen"]
[Date "2019.09.13"]
[Round "8.3"]
[White "Varga, Zoltan"]
[Black "Nomin-Erdene, Davaademberel"]
[Result "1/2-1/2"]
[ECO "B13"]
[WhiteElo "2437"]
[BlackElo "2377"]
[Annotator "NA"]
[PlyCount "40"]
[EventDate "2019.09.09"]
[EventType "tourn"]
[EventCountry "HUN"]
[SourceTitle "playchess.com"]
[Source "ChessBase"]
[SourceQuality "1"]
[TimeControl "40/5400+30:900+30"]

1. c4 {[%emt 0:00:05]} c6 {[%emt 0:00:11]} 2. e4 {[%emt 0:00:31]} d5 {[%emt 0:00:39]} 3. exd5 {[%emt 0:04:10]} cxd5 {[%emt 0:00:18]} 4. d4 {[%emt 0:00:07]} Nf6 {[%emt 0:03:09]} 5. Nc3 {[%emt 0:00:47]} Nc6 {[%emt 0:01:49]} 6. Nf3 {[%emt 0:05:33]} Bg4 {[%emt 0:09:13]} 7. cxd5 {[%emt 0:02:58]} Nxd5 {[%emt 0:00:35]} 8. Qb3 {[%emt 0:03:46]} Bxf3 {[%emt 0:03:10]} 9. gxf3 {[%emt 0:00:19]} e6 {[%emt 0:00:26]} 10. Qxb7 {[%emt 0:00:38]} Nxd4 {[%emt 0:01:46]} 11. Bb5+ {[%emt 0:04:03]} Nxb5 {[%emt 0:00:15]} 12. Qc6+ {[%emt 0:01:07]} Ke7 {[%emt 0:00:33]} 13. Qxb5 {[%emt 0:00:21]} Qd7 {[%emt 0:02:25]} 14. Nxd5+ {[%emt 0:01:20]} Qxd5 {[%emt 0:00:19]} 15. Qxd5 {[%emt 0:00:00]} exd5 {[%emt 0:00:06]} 16. Be3 {[%emt 0:01:19]} Ke6 {[%emt 0:00:28]} 17. O-O-O {[%emt 0:04:00]} Bb4 {[%emt 0:07:21]} 18. Rd3 {[%emt 0:02:53]} Rhc8+ {[%emt 0:02:22]} 19. Kb1 {[%emt 0:00:31]} Bc5 {[%emt 0:04:58]} 20. Rhd1 {[%emt 0:04:07]} Ke5 1/2-1/2

[Event "MGL-HUN Friendship Cup 2019"]
[Site "Debrecen"]
[Date "2019.09.14"]
[Round "9.1"]
[White "Varga, Zoltan"]
[Black "Lajthajm, Borko"]
[Result "1/2-1/2"]
[ECO "C10"]
[WhiteElo "2437"]
[BlackElo "2414"]
[Annotator "NA"]
[PlyCount "32"]
[EventDate "2019.09.09"]
[EventType "tourn"]
[EventCountry "HUN"]
[SourceTitle "playchess.com"]
[Source "ChessBase"]
[SourceQuality "1"]
[TimeControl "40/5400+30:900+30"]

1. e4 {[%emt 0:00:03]} e6 {[%emt 0:00:07]} 2. d4 {[%emt 0:00:30]} d5 {[%emt 0:00:07]} 3. Nc3 {[%emt 0:00:06]} dxe4 {[%emt 0:00:17]} 4. Nxe4 {[%emt 0:00:04]} Bd7 {[%emt 0:00:15]} 5. Nf3 {[%emt 0:00:43]} Bc6 {[%emt 0:00:08]} 6. Bd3 {[%emt 0:01:01]} Nd7 {[%emt 0:00:19]} 7. O-O {[%emt 0:00:24]} Ngf6 {[%emt 0:01:04]} 8. Ng3 {[%emt 0:00:35]} Be7 {[%emt 0:02:06]} 9. Re1 {[%emt 0:02:38]} O-O {[%emt 0:00:48]} 10. c3 {[%emt 0:00:23]} Re8 {[%emt 0:02:05]} 11. Bc2 {[%emt 0:05:21]} a5 {[%emt 0:03:06]} 12. Qd3 {[%emt 0:02:19]} Bxf3 {[%emt 0:01:56]} 13. Qxf3 {[%emt 0:00:18]} c6 {[%emt 0:00:06]} 14. Qd3 {[%emt 0:01:39]} Nf8 {[%emt 0:02:53]} 15. b3 {[%emt 0:02:17]} Qc7 {[%emt 0:01:00]} 16. Bb2 {[%emt 0:00:16]} Red8 {[%emt 0:01:23]} 1/2-1/2

[Event "MGL-HUN Friendship Cup 2019"]
[Site "Debrecen"]
[Date "2019.09.14"]
[Round "9.2"]
[White "Nomin-Erdene, Davaademberel"]
[Black "Laketic, Gojko"]
[Result "1-0"]
[ECO "C41"]
[WhiteElo "2377"]
[BlackElo "2367"]
[Annotator "NA"]
[PlyCount "79"]
[EventDate "2019.09.09"]
[EventType "tourn"]
[EventCountry "HUN"]
[SourceTitle "playchess.com"]
[Source "ChessBase"]
[SourceQuality "1"]
[TimeControl "40/5400+30:900+30"]

1. e4 {[%emt 0:00:13]} d6 {[%emt 0:00:54]} 2. d4 {[%emt 0:00:48]} Nf6 {[%emt 0:00:30]} 3. Nc3 {[%emt 0:00:17]} e5 {[%emt 0:00:12]} 4. Nf3 {[%emt 0:00:16]} Nbd7 {[%emt 0:00:07]} 5. Bc4 {[%emt 0:00:32]} Be7 {[%emt 0:00:11]} 6. O-O {[%emt 0:00:36]} O-O {[%emt 0:00:04]} 7. a4 {[%emt 0:00:34]} c6 {[%emt 0:02:47]} 8. Re1 {[%emt 0:02:54]} b6 {[%emt 0:14:20]} 9. d5 {[%emt 0:11:32]} Bb7 {[%emt 0:00:14]} 10. dxc6 {[%emt 0:06:40]} Bxc6 {[%emt 0:00:27]} 11. Bg5 {[%emt 0:00:14]} Rc8 {[%emt 0:02:23]} 12. Bxf6 {[%emt 0:05:02]} Nxf6 {[%emt 0:00:41]} 13. Qd3 {[%emt 0:00:36]} Bb7 {[%emt 0:01:26]} 14. Nd2 {[%emt 0:04:19]} Qc7 {[%emt 0:10:20]} 15. Bb3 {[%emt 0:03:48]} Rfd8 {[%emt 0:00:17]} 16. Nf1 {[%emt 0:02:13]} Bf8 {[%emt 0:00:30]} 17. Ne3 {[%emt 0:02:33]} g6 {[%emt 0:01:55]} 18. a5 {[%emt 0:04:16]} Bh6 {[%emt 0:04:05]} 19. axb6 {[%emt 0:03:42]} axb6 {[%emt 0:00:07]} 20. Ned5 {[%emt 0:02:21]} Nxd5 {[%emt 0:00:25]} 21. Bxd5 {[%emt 0:04:33]} Bxd5 {[%emt 0:00:28]} 22. Qxd5 {[%emt 0:00:11]} Qc5 {[%emt 0:06:30]} 23. Qd1 {[%emt 0:06:35]} Qd4 {[%emt 0:00:38]} 24. Qf3 {[%emt 0:02:58]} b5 {[%emt 0:00:10]} 25. Red1 {[%emt 0:02:01]} Qc5 {[%emt 0:00:35]} 26. Nd5 {[%emt 0:03:27]} Ra8 {[%emt 0:00:37]} 27. c3 {[%emt 0:01:19]} Bf8 {[%emt 0:04:28]} 28. h4 {[%emt 0:01:46]} Ra4 {[%emt 0:02:09]} 29. b3 {[%emt 0:02:54]} Ra3 {[%emt 0:00:07]} 30. h5 {[%emt 0:02:03]} Rda8 {[%emt 0:02:43]} 31. b4 {[%emt 0:03:30]} Qc6 {[%emt 0:00:23]} 32. Rxa3 {[%emt 0:00:56]} Rxa3 {[%emt 0:00:01]} 33. Qh3 {[%emt 0:00:32]} Ra7 {[%emt 0:00:58]} 34. Rd3 {[%emt 0:01:52]} Bg7 {[%emt 0:00:28]} 35. Rf3 {[%emt 0:04:59]} Ra1+ {[%emt 0:00:37]} 36. Kh2 {[%emt 0:00:06]} Ra7 {[%emt 0:00:10]} 37. Qh4 {[%emt 0:00:34]} Qe8 {[%emt 0:00:24]} 38. h6 {[%emt 0:00:45]} Bh8 {[%emt 0:00:51]} 39. c4 {[%emt 0:00:53]} bxc4 {[%emt 0:00:21]} 40. Rc3 {[%emt 0:00:00]} 1-0

[Event "MGL-HUN Friendship Cup 2019"]
[Site "Debrecen"]
[Date "2019.09.15"]
[Round "10.3"]
[White "Laketic, Gojko"]
[Black "Varga, Zoltan"]
[Result "1/2-1/2"]
[ECO "C41"]
[WhiteElo "2367"]
[BlackElo "2437"]
[Annotator "ChessBase"]
[PlyCount "24"]
[EventDate "2019.09.09"]
[EventType "tourn"]
[EventCountry "HUN"]
[SourceTitle "playchess.com"]
[Source "ChessBase"]
[SourceQuality "1"]
[TimeControl "40/5400+30:900+30"]

1. d4 {[%emt 0:01:16]} d6 {[%emt 0:00:06]} 2. e4 {[%emt 0:04:25]} Nf6 {[%emt 0:01:12]} 3. Nc3 {[%emt 0:01:42]} e5 {[%emt 0:00:22]} 4. Nf3 {[%emt 0:01:35]} Nbd7 {[%emt 0:00:30]} 5. Bc4 {[%emt 0:00:18]} Be7 {[%emt 0:00:08]} 6. O-O {[%emt 0:00:54]} O-O {[%emt 0:00:15]} 7. Re1 {[%emt 0:00:44]} c6 {[%emt 0:00:30]} 8. a4 {[%emt 0:00:41]} b6 {[%emt 0:05:49]} 9. h3 {[%emt 0:14:22]} Bb7 {[%emt 0:02:19]} 10. d5 {[%emt 0:11:28]} cxd5 11. Nxd5 {[%emt 0:00:10]} Rc8 {[%emt 0:09:44]} 12. Nxf6+ {[%emt 0:03:06]} Nxf6 {[%emt 0:02:09]} 1/2-1/2